bitfinex-derivatives/quotes_BTCF0:USTF0_20250912
["timestamp","ask_amount","ask_price","bid_price","bid_amount"]
[1757650900675,0.42847785,115380.0,115370.0,0.00866]
[1757650901076,0.78927785,115380.0,115370.0,0.00866]
[1757650901476,1.21767785,115380.0,115370.0,0.00866]
[1757650901784,0.42847785,115380.0,115370.0,0.03266]
[1757650904177,0.24256551,115380.0,115370.0,0.21857234]
[1757650904382,0.03635,115380.0,115370.0,1.01528468]
[1757650904686,0.01356,115390.0,115370.0,1.57026468]
[1757650904877,0.03635,115390.0,115380.0,1.62145813]
[1757650905078,0.03427915,115400.0,115380.0,2.47145813]
[1757650905385,0.05706915,115400.0,115390.0,0.20791234]
[1757650905572,0.05706915,115400.0,115390.0,1.35795234]
[1757650905773,0.24298149,115400.0,115390.0,1.35795234]
[1757650905980,0.24298149,115400.0,115390.0,1.43554579]
[1757650906884,0.05706915,115400.0,115390.0,1.43554579]
[1757650907085,0.24298149,115400.0,115390.0,1.50380168]
[1757650907386,0.24394149,115400.0,115390.0,1.50380168]
[1757650908176,0.24494149,115400.0,115390.0,1.50380168]
[1757650908988,0.05902915,115400.0,115390.0,1.50380168]
[1757650909291,0.24494149,115400.0,115390.0,1.50380168]
[1757650909486,0.05902915,115400.0,115390.0,1.50380168]
[1757650909985,0.24494149,115400.0,115390.0,1.50380168]
[1757650911889,0.05902915,115400.0,115390.0,1.50380168]
[1757650912192,0.05902915,115400.0,115390.0,1.42620823]
[1757650913092,0.04594915,115400.0,115390.0,1.50380168]
[1757650913292,0.04594915,115400.0,115390.0,1.68380168]
[1757650914193,0.04594915,115400.0,115390.0,1.49788934]
[1757650914495,0.04594915,115400.0,115390.0,1.68380168]
[1757650915293,0.04594915,115400.0,115390.0,2.03380168]
[1757650916592,0.04594915,115400.0,115390.0,1.97180908]
[1757650917288,0.02315915,115400.0,115390.0,1.97180908]
[1757650917493,0.02315915,115400.0,115390.0,2.22844908]
[1757650920093,0.02315915,115400.0,115390.0,2.27477537]
[1757650920390,0.02315915,115400.0,115390.0,2.35236882]
[1757650920586,0.02315915,115400.0,115390.0,1.00864934]
[1757650920587,0.28390863,115400.0,115390.0,1.00864934]
[1757650920787,0.18215889,115400.0,115390.0,0.52864934]
[1757650921096,0.05823915,115400.0,115390.0,1.36405563]
[1757650921397,0.05823915,115400.0,115390.0,0.57497563]
[1757650921698,0.05823915,115400.0,115390.0,1.36405563]
[1757650922590,0.05823915,115400.0,115390.0,1.24013589]
[1757650923896,0.18215889,115400.0,115390.0,1.24009589]
[1757650924096,0.18215889,115400.0,115390.0,0.45105589]
[1757650924298,0.18215889,115400.0,115390.0,1.31768934]
[1757650924892,0.18215889,115400.0,115390.0,0.53730934]
[1757650925093,0.18215889,115400.0,115390.0,1.32634934]
[1757650925292,0.18215889,115400.0,115390.0,0.53730934]
[1757650925498,0.18215889,115400.0,115390.0,1.25809345]
[1757650925894,0.30607863,115400.0,115390.0,0.08625345]
[1757650926093,0.55607863,115400.0,115390.0,0.00866]
[1757650928499,0.91687863,115400.0,115390.0,0.00866]
[1757650930805,1.70591863,115400.0,115390.0,0.00866]
[1757650931999,0.91687863,115400.0,115390.0,0.00866]
[1757650932199,0.66903915,115400.0,115390.0,0.03181]
[1757650932400,0.91687863,115400.0,115390.0,0.00866]
[1757650933102,0.91687863,115400.0,115390.0,0.03181]
[1757650933301,0.55607863,115400.0,115390.0,0.03181]
[1757650933996,0.05823915,115400.0,115390.0,1.87948948]
[1757650934201,0.05823915,115400.0,115390.0,2.06556974]
[1757650934501,0.05823915,115400.0,115390.0,2.01924345]
[1757650934702,0.05823915,115400.0,115390.0,2.14316319]
[1757650941007,0.05823915,115400.0,115390.0,2.13450319]
[1757650942006,0.05823915,115400.0,115390.0,2.14316319]
[1757650942809,0.05823915,115400.0,115390.0,2.06556974]
[1757650945610,0.05823915,115400.0,115390.0,1.55556974]
[1757650945820,0.05823915,115400.0,115390.0,1.71556974]
[1757650946311,0.00296,115400.0,115390.0,2.10948948]
[1757650946510,0.00296,115400.0,115390.0,2.18708293]
[1757650946913,0.00296,115400.0,115390.0,2.27371353]
[1757650947112,0.00296,115400.0,115390.0,2.19612008]
[1757650947314,0.00296,115400.0,115390.0,2.10948948]
[1757650948014,0.00296,115400.0,115390.0,1.98556974]
[1757650948214,0.00296,115400.0,115390.0,2.06312459]
[1757650949312,0.00296,115400.0,115390.0,1.98556974]
[1757650952406,0.00296,115400.0,115390.0,2.06312459]
[1757650952607,0.00296,115400.0,115390.0,1.27408459]
[1757650952812,0.00296,115400.0,115390.0,2.06352459]
[1757650953014,0.00296,115400.0,115390.0,1.15016485]
[1757650953219,0.13950974,115400.0,115390.0,1.73592974]
[1757650953522,0.01559,115400.0,115390.0,1.81338339]
[1757650953717,0.01559,115400.0,115390.0,1.05526563]
[1757650953917,0.01559,115400.0,115390.0,1.84474563]
[1757650955314,0.01559,115400.0,115390.0,1.05526563]
[1757650955519,0.16162974,115400.0,115390.0,1.72070589]
[1757650955720,0.03771,115400.0,115390.0,1.84462563]
[1757650956114,0.16162974,115400.0,115390.0,1.84462563]
[1757650956309,0.16162974,115400.0,115390.0,1.72070589]
[1757650956616,0.03771,115400.0,115390.0,1.72070589]
[1757650956815,0.16162974,115400.0,115390.0,1.61197]
[1757650957018,0.16162974,115400.0,115390.0,1.68936679]
[1757650958021,0.16162974,115400.0,115390.0,0.90000679]
[1757650958324,0.16162974,115400.0,115390.0,1.02392653]
[1757650958522,0.16162974,115400.0,115390.0,1.81312653]
[1757650958819,0.03771,115400.0,115390.0,1.81312653]
[1757650959925,0.03771,115400.0,115390.0,1.68920679]
[1757650960224,0.03771,115400.0,115390.0,1.81312653]
[1757650963026,0.03771,115400.0,115390.0,1.84446563]
[1757650965330,0.03771,115400.0,115390.0,1.72054589]
[1757650965530,0.03771,115400.0,115390.0,1.84446563]
[1757650965727,0.16162974,115400.0,115390.0,1.05526563]
[1757650965929,0.53554948,115400.0,115390.0,0.21799777]
[1757650966129,0.28771,115400.0,115390.0,0.11739589]
[1757650966331,0.53554948,115400.0,115390.0,0.11739589]
[1757650967132,0.89634948,115400.0,115390.0,0.11739589]
[1757650967332,0.89634948,115400.0,115390.0,0.08613216]
[1757650967935,0.89634948,115400.0,115390.0,0.08613216]
[1757650971246,0.89634948,115400.0,115390.0,0.00866]
[1757650973548,0.64851,115400.0,115390.0,0.00866]
[1757650973749,0.89634948,115400.0,115390.0,0.00866]
[1757650976049,0.89634948,115400.0,115390.0,0.11716651]
[1757650978553,1.02045892,115400.0,115390.0,0.19469181]
[1757650978946,1.02045892,115400.0,115390.0,0.0861853]
[1757650980461,1.02045892,115400.0,115390.0,0.00866]
[1757650980959,0.95643338,115400.0,115390.0,0.08620114]
[1757650982448,0.96496595,115400.0,115390.0,0.08620114]
[1757650982649,0.96496595,115400.0,115390.0,0.00866]
[1757650983152,0.96496595,115400.0,115390.0,0.08620114]
[1757650984254,1.21496595,115400.0,115390.0,0.08620114]
[1757650984558,0.03484,115370.0,115360.0,0.61673949]
[1757650984759,0.03484,115370.0,115360.0,0.84673949]
[1757650985458,0.22081446,115370.0,115360.0,0.84673949]
[1757650985652,0.03484,115370.0,115360.0,0.84673949]
[1757650985959,0.03484,115370.0,115360.0,1.03271395]
[1757650986253,0.40678892,115370.0,115360.0,0.28629507]
[1757650986455,0.76758892,115370.0,115360.0,0.28829507]
[1757650986753,0.76758892,115370.0,115360.0,0.17974931]
[1757650986954,0.76758892,115370.0,115360.0,0.02474]
[1757650987457,0.76758892,115370.0,115360.0,0.13328824]
[1757650988056,0.76758892,115370.0,115360.0,0.13528824]
[1757650988655,0.03484,115370.0,115360.0,0.13528824]
[1757650988854,0.03484,115370.0,115360.0,0.38754]
[1757650989054,0.22081446,115370.0,115360.0,0.38754]
[1757650994361,0.22081446,115370.0,115360.0,0.46513348]
[1757650994861,0.22081446,115370.0,115360.0,0.38754]
[1757650996355,0.40678892,115370.0,115360.0,0.004]
[1757650997357,0.76758892,115370.0,115360.0,0.004]
[1757650998564,1.55774892,115370.0,115360.0,0.004]
[1757651001655,1.76408483,115370.0,115360.0,0.004]
[1757651001859,1.57811037,115370.0,115360.0,0.004]
[1757651003061,1.76408483,115370.0,115360.0,0.004]
[1757651003265,1.57811037,115370.0,115360.0,0.004]
[1757651003756,1.82811037,115370.0,115360.0,0.004]
[1757651005462,0.01292,115350.0,115340.0,0.3608]
[1757651005668,1.19645892,115350.0,115340.0,0.02194]
[1757651006766,1.19645892,115350.0,115340.0,0.02594]
[1757651007964,1.19645892,115350.0,115340.0,0.008]
[1757651009163,1.55725892,115350.0,115340.0,0.008]
[1757651011664,0.76761892,115350.0,115340.0,0.008]
[1757651011864,1.55717892,115350.0,115340.0,0.007]
[1757651012064,0.76761892,115350.0,115340.0,0.007]
[1757651012370,1.55709892,115350.0,115340.0,0.007]
[1757651012965,1.55701892,115350.0,115340.0,0.005]
[1757651014462,0.76761892,115350.0,115340.0,0.005]
[1757651014767,1.55701892,115350.0,115340.0,0.005]
[1757651015370,0.76761892,115350.0,115340.0,0.005]
[1757651015571,1.55709892,115350.0,115340.0,0.005]
[1757651016560,1.55705892,115350.0,115340.0,0.005]
[1757651019269,0.39567,115350.0,115340.0,0.005]
[1757651019472,1.55701892,115350.0,115340.0,0.02694]
[1757651019770,1.55701892,115350.0,115340.0,0.005]
[1757651025478,1.19621892,115350.0,115340.0,0.005]
[1757651025779,1.55701892,115350.0,115340.0,0.005]
[1757651032584,1.55701892,115350.0,115340.0,0.02694]
[1757651033484,1.55701892,115350.0,115340.0,0.005]
[1757651038392,1.43324392,115350.0,115340.0,0.005]
[1757651050994,1.18507,115350.0,115340.0,0.005]
[1757651051295,1.43324392,115350.0,115340.0,0.08259348]
[1757651054500,1.43324392,115350.0,115340.0,0.005]
[1757651059708,1.43324392,115350.0,115340.0,0.08259348]
[1757651061509,1.43324392,115350.0,115340.0,0.005]
[1757651063308,1.43324392,115350.0,115340.0,0.08259348]
[1757651064922,1.43324392,115350.0,115340.0,0.005]
[1757651065621,1.43324392,115350.0,115340.0,0.08259348]
[1757651068427,1.43324392,115350.0,115340.0,0.005]
[1757651069322,1.55733088,115350.0,115340.0,0.005]
[1757651069822,1.43324392,115350.0,115340.0,0.005]
[1757651070528,0.64384392,115350.0,115340.0,0.005]
[1757651070726,1.43312392,115350.0,115340.0,0.005]
[1757651073324,1.43312392,115350.0,115340.0,0.004]
[1757651074028,1.43312392,115350.0,115340.0,0.003]
[1757651075127,1.79392392,115350.0,115340.0,0.003]
[1757651075631,1.43312392,115350.0,115340.0,0.003]
[1757651075830,1.18495,115350.0,115340.0,0.02593]
[1757651076130,1.43312392,115350.0,115340.0,0.02593]
[1757651079839,1.43312392,115350.0,115340.0,0.003]
[1757651081934,1.43312392,115350.0,115340.0,0.02593]
[1757651082336,1.43312392,115350.0,115340.0,0.003]
[1757651086636,1.43312392,115350.0,115340.0,0.02593]
[1757651086637,1.18495,115350.0,115340.0,0.02593]
[1757651086941,1.43312392,115350.0,115340.0,0.003]
[1757651088642,1.91801088,115350.0,115340.0,0.003]
[1757651095942,1.00464392,115350.0,115340.0,0.003]
[1757651096142,0.88055696,115350.0,115340.0,0.27472]
[1757651096447,1.66975696,115350.0,115340.0,0.27472]
[1757651096647,0.94815696,115350.0,115340.0,0.27472]
[1757651098846,1.07224392,115350.0,115340.0,0.27472]
[1757651100341,1.19629506,115350.0,115340.0,0.27472]
[1757651100746,1.21644421,115350.0,115340.0,0.27472]
[1757651101436,1.21640421,115350.0,115340.0,0.27472]
[1757651101635,0.02195,115350.0,115340.0,1.19078506]
[1757651101841,0.37372,115360.0,115350.0,0.0334]
[1757651101842,1.01104253,115360.0,115350.0,0.0334]
[1757651102147,1.19715506,115360.0,115350.0,0.3942]
[1757651102348,1.19715506,115360.0,115350.0,0.02172]
[1757651102349,1.38326759,115360.0,115350.0,0.02172]
[1757651102654,0.03615,115350.0,115340.0,0.003]
[1757651102956,0.40837506,115350.0,115340.0,0.02472]
[1757651104244,0.40837506,115350.0,115340.0,0.10131348]
[1757651104655,1.19749506,115350.0,115340.0,0.02372]
[1757651104853,1.19749506,115350.0,115340.0,0.02172]
[1757651105053,1.19749506,115350.0,115340.0,0.02272]
[1757651107255,1.19749506,115350.0,115340.0,0.10231348]
[1757651107555,1.19749506,115350.0,115340.0,0.02472]
[1757651109151,1.19749506,115350.0,115340.0,0.38552]
[1757651118566,1.19749506,115350.0,115340.0,0.46311348]
[1757651118864,1.19749506,115350.0,115340.0,0.38552]
[1757651120968,0.40837506,115350.0,115340.0,0.38552]
[1757651128481,0.40837506,115350.0,115340.0,0.46311348]
[1757651129175,0.03615,115350.0,115340.0,0.46311348]
[1757651129378,0.40837506,115350.0,115340.0,0.46311348]
[1757651136285,1.3690168,115360.0,115350.0,0.01286]
[1757651136286,0.02141,115360.0,115350.0,0.01286]
[1757651136584,0.20752253,115360.0,115350.0,1.0790043]
[1757651137280,0.20752253,115360.0,115350.0,1.15669536]
[1757651137482,0.18611253,115360.0,115350.0,1.15769536]
[1757651138587,0.18611253,115360.0,115350.0,1.94645536]
[1757651139087,0.18611253,115360.0,115350.0,1.97739517]
[1757651139584,0.18611253,115360.0,115350.0,1.8687643]
[1757651139786,0.18611253,115360.0,115350.0,1.97739517]
[1757651140588,0.18611253,115360.0,115350.0,1.8687643]
[1757651141589,0.18611253,115360.0,115350.0,1.68265177]
[1757651141789,0.18611253,115360.0,115350.0,1.8687643]
[1757651143590,0.18611253,115360.0,115350.0,1.94637369]
[1757651144590,0.18611253,115360.0,115350.0,1.97739517]
[1757651146388,0.37222506,115360.0,115350.0,1.79116264]
[1757651146592,0.37222506,115360.0,115350.0,1.8686443]
[1757651146986,0.39363506,115360.0,115350.0,0.89389177]
[1757651147294,0.39363506,115360.0,115350.0,1.0800043]
[1757651147493,0.39363506,115360.0,115350.0,1.8686443]
[1757651147692,0.40717506,115360.0,115350.0,1.68253177]
[1757651147887,0.40717506,115360.0,115350.0,1.8686443]
[1757651150596,0.40717506,115360.0,115350.0,1.97727517]
[1757651150894,0.39363506,115360.0,115350.0,1.97727517]
[1757651155808,0.39363506,115360.0,115350.0,1.8686443]
[1757651157896,0.39363506,115360.0,115350.0,1.94617773]
[1757651158903,0.39363506,115360.0,115350.0,1.8686443]
[1757651159903,0.39363506,115360.0,115350.0,1.5078443]
[1757651160095,0.39363506,115360.0,115350.0,2.3069838]
[1757651162405,0.14543085,115360.0,115350.0,2.12087127]
[1757651163503,0.14543085,115360.0,115350.0,2.04333177]
[1757651166105,0.14543085,115360.0,115350.0,2.15196264]
[1757651167000,0.14543085,115360.0,115350.0,2.04333177]
[1757651167402,0.02141,115360.0,115350.0,2.16735262]
[1757651167602,0.14543085,115360.0,115350.0,0.99469177]
[1757651167803,0.14543085,115360.0,115350.0,1.89181107]
[1757651170710,0.14543085,115360.0,115350.0,1.78313177]
[1757651171613,0.12402085,115360.0,115350.0,1.76128177]
[1757651173414,0.03473,115370.0,115360.0,0.02191]
[1757651173609,0.15875085,115370.0,115360.0,0.38271]
[1757651175415,0.03473,115370.0,115360.0,0.38271]
[1757651175716,0.15875085,115370.0,115360.0,0.38271]
[1757651175920,0.15975085,115370.0,115360.0,0.38271]
[1757651176313,0.15975085,115370.0,115360.0,0.46919805]
[1757651176509,0.16075085,115370.0,115360.0,0.46919805]
[1757651177207,0.16075085,115370.0,115360.0,0.39155862]
[1757651177413,0.16075085,115370.0,115360.0,0.50023792]
[1757651180921,0.16075085,115370.0,115360.0,0.57793236]
[1757651181118,0.16075085,115370.0,115360.0,0.46925306]
[1757651182312,0.16075085,115370.0,115360.0,0.39155862]
[1757651182720,0.16075085,115370.0,115360.0,0.50023792]
[1757651183422,0.16075085,115370.0,115360.0,0.39155862]
[1757651187217,0.16075085,115370.0,115360.0,0.46927384]
[1757651187524,0.16075085,115370.0,115360.0,0.39155862]
[1757651189017,0.12602085,115370.0,115360.0,0.89827947]
[1757651189520,0.14775085,115370.0,115360.0,0.89827947]
[1757651191328,0.14775085,115370.0,115360.0,0.85197384]
[1757651192322,0.14775085,115370.0,115360.0,0.96065314]
[1757651192620,0.002,115370.0,115360.0,1.50500047]
[1757651192824,0.18064516,115400.0,115390.0,0.02265]
[1757651193025,0.30466601,115400.0,115390.0,0.38345]
[1757651194025,0.30866601,115400.0,115390.0,0.38345]
[1757651194925,0.31166601,115400.0,115390.0,0.38345]
[1757651204535,0.31166601,115400.0,115390.0,0.02265]
[1757651204735,0.31166601,115400.0,115390.0,0.10035308]
[1757651204938,0.31166601,115400.0,115390.0,0.46115308]
[1757651205130,0.31166601,115400.0,115390.0,0.38345]
[1757651206525,0.06362431,115400.0,115390.0,0.38345]
[1757651206836,0.31166601,115400.0,115390.0,0.38345]
[1757651207937,0.31166601,115400.0,115390.0,0.46115308]
[1757651208630,0.31166601,115400.0,115390.0,0.38345]
[1757651209432,0.31166601,115400.0,115390.0,0.46115308]
[1757651210732,0.31166601,115400.0,115390.0,0.38345]
[1757651211444,0.06362431,115400.0,115390.0,0.38345]
[1757651211743,0.31166601,115400.0,115390.0,0.38345]
[1757651213540,0.31166601,115400.0,115390.0,0.46115308]
[1757651213740,0.17406516,115400.0,115390.0,0.88385308]
[1757651214134,0.13198085,115400.0,115390.0,1.03895517]
[1757651214336,0.13198085,115400.0,115390.0,0.99242628]
[1757651214639,0.13198085,115400.0,115390.0,0.88364196]
[1757651214836,0.12898085,115400.0,115390.0,0.88364196]
[1757651215041,0.12998085,115400.0,115390.0,0.88364196]
[1757651215545,0.15216085,115400.0,115390.0,0.72364196]
[1757651215742,0.15216085,115400.0,115390.0,0.90364196]
[1757651216042,0.14816085,115400.0,115390.0,0.90364196]
[1757651216244,0.14916085,115400.0,115390.0,0.90364196]
[1757651216639,0.12698085,115400.0,115390.0,0.82615]
[1757651217535,0.12698085,115400.0,115390.0,0.89383777]
[1757651218045,0.12698085,115400.0,115390.0,0.82615]
[1757651218543,0.14916085,115400.0,115390.0,0.82615]
[1757651219145,0.12698085,115400.0,115390.0,0.95017085]
[1757651219442,0.00296,115400.0,115390.0,0.82615]
[1757651219648,0.12698085,115400.0,115390.0,0.90364196]
[1757651219844,0.00296,115400.0,115390.0,1.02766281]
[1757651220447,0.12698085,115400.0,115390.0,1.81546281]
[1757651220838,0.00296,115400.0,115390.0,1.56546281]
[1757651221044,0.00296,115400.0,115390.0,2.23546281]
[1757651221239,0.00296,115400.0,115390.0,2.35338567]
[1757651221644,0.00296,115400.0,115390.0,2.31293357]
[1757651222449,0.00296,115400.0,115390.0,2.37476264]
[1757651222840,0.00296,115400.0,115390.0,2.37472264]
[1757651225349,0.00296,115400.0,115390.0,2.48303146]
[1757651229345,0.00296,115400.0,115390.0,1.69527146]
[1757651229552,0.00296,115400.0,115390.0,2.48291146]
[1757651229749,0.00296,115400.0,115390.0,2.37460264]
[1757651231051,0.00296,115400.0,115390.0,2.4519519]
[1757651232347,0.18584992,115410.0,115400.0,0.03168]
[1757651232652,0.18584992,115410.0,115400.0,1.37154472]
[1757651233242,0.01988291,115420.0,115410.0,0.03464]
[1757651233447,0.20573283,115420.0,115410.0,1.8462148]
[1757651233648,0.20573283,115420.0,115410.0,1.8442148]
[1757651234155,0.01988551,115430.0,115410.0,1.8442148]
[1757651234348,0.04206551,115430.0,115420.0,0.39566]
[1757651234548,0.22791543,115430.0,115420.0,0.39266]
[1757651234852,0.22791543,115430.0,115420.0,0.39066]
[1757651235355,0.23191543,115430.0,115420.0,0.39066]
[1757651235555,0.23191543,115430.0,115420.0,0.3991732]
[1757651235854,0.22791543,115430.0,115420.0,0.3991732]
[1757651236056,0.23191543,115430.0,115420.0,0.3991732]
[1757651236249,0.23191543,115430.0,115420.0,0.74502312]
[1757651236456,0.23291543,115430.0,115420.0,0.74502312]
[1757651236656,0.23291543,115430.0,115420.0,0.3991732]
[1757651236957,0.24650543,115430.0,115420.0,0.3991732]
[1757651237957,0.06065551,115430.0,115420.0,0.3991732]
[1757651238262,0.24650543,115430.0,115420.0,0.3991732]
[1757651238563,0.02488551,115430.0,115420.0,0.73502312]
[1757651238757,0.21073543,115430.0,115420.0,0.73502312]
[1757651238957,0.21073543,115430.0,115420.0,0.812388]
[1757651239656,0.02488551,115430.0,115420.0,0.812388]
[1757651239968,0.20973543,115430.0,115420.0,0.73502312]
[1757651240260,0.20973543,115430.0,115420.0,1.18502312]
[1757651240454,0.20973543,115430.0,115420.0,1.262388]
[1757651240656,0.20573543,115430.0,115420.0,1.262388]
[1757651240857,0.20673543,115430.0,115420.0,1.262388]
[1757651242557,0.02088551,115430.0,115420.0,1.262388]
[1757651242757,0.02088551,115430.0,115420.0,1.44823792]
[1757651243263,0.02088551,115430.0,115420.0,1.37087304]
[1757651243558,0.001,115430.0,115420.0,1.37087304]
[1757651243755,0.001,115430.0,115420.0,1.97246312]
[1757651243756,0.18684992,115430.0,115420.0,1.97246312]
[1757651243956,0.18684992,115430.0,115420.0,1.7866132]
[1757651244357,0.18684992,115430.0,115420.0,2.04982574]
[1757651244659,0.18684992,115430.0,115420.0,1.86397582]
[1757651244856,0.001,115430.0,115420.0,2.04982574]
[1757651245159,0.18684992,115430.0,115420.0,2.23567566]
[1757651246461,0.18684992,115430.0,115420.0,2.15831304]
[1757651246662,0.001,115430.0,115420.0,2.15831304]
[1757651247156,0.001,115430.0,115420.0,2.26662186]
[1757651247364,0.18684992,115430.0,115420.0,2.26662186]
[1757651247963,0.18684992,115430.0,115420.0,1.89492202]
[1757651248366,0.001,115430.0,115420.0,2.26662186]
[1757651248665,0.18684992,115430.0,115420.0,2.26662186]
[1757651249167,0.001,115430.0,115420.0,2.26890186]
[1757651249465,0.18684992,115430.0,115420.0,2.26890186]
[1757651250463,0.18684992,115430.0,115420.0,1.47918186]
[1757651250858,0.18684992,115430.0,115420.0,1.89788202]
[1757651251060,0.18684992,115430.0,115420.0,2.26958186]
[1757651251868,0.001,115430.0,115420.0,2.26958186]
[1757651252264,0.18684992,115430.0,115420.0,2.26958186]
[1757651252564,0.18684992,115430.0,115420.0,1.89788202]
[1757651252765,0.18684992,115430.0,115420.0,2.26958186]
[1757651252966,0.18684992,115430.0,115420.0,2.34695968]
[1757651253166,0.001,115430.0,115420.0,2.23865086]
[1757651253366,0.18684992,115430.0,115420.0,1.07655102]
[1757651253563,0.18684992,115430.0,115420.0,1.86951235]
[1757651253866,0.18684992,115430.0,115420.0,2.24133219]
[1757651254071,0.18684992,115430.0,115420.0,2.05548227]
[1757651254369,0.001,115430.0,115420.0,2.05548227]
[1757651254562,0.18684992,115430.0,115420.0,2.05548227]
[1757651254762,0.18684992,115430.0,115420.0,2.24133219]
[1757651255361,0.18684992,115430.0,115420.0,2.05548227]
[1757651255560,0.18684992,115430.0,115420.0,1.86963235]
[1757651255960,0.18684992,115430.0,115420.0,2.24133219]
[1757651256862,0.001,115430.0,115420.0,2.24133219]
[1757651257064,0.18684992,115430.0,115420.0,2.24133219]
[1757651257270,0.001,115430.0,115420.0,2.24133219]
[1757651257570,0.18684992,115430.0,115420.0,2.24133219]
[1757651258769,0.18684992,115430.0,115420.0,2.05548227]
[1757651259768,0.18684992,115430.0,115420.0,1.86199235]
[1757651259769,0.20032992,115430.0,115420.0,1.86199235]
[1757651259957,0.20032992,115430.0,115420.0,1.7845332]
[1757651259958,0.22231992,115430.0,115420.0,1.7845332]
[1757651260561,0.22231992,115430.0,115420.0,1.86191235]
[1757651261972,0.22231992,115430.0,115420.0,2.04776227]
[1757651262469,0.22231992,115430.0,115420.0,1.86191235]
[1757651262770,0.20883992,115430.0,115420.0,2.05746227]
[1757651265472,0.20883992,115430.0,115420.0,1.98008312]
[1757651265675,0.22231992,115430.0,115420.0,1.98008312]
[1757651267076,0.22231992,115430.0,115420.0,1.7942332]
[1757651267263,0.22231992,115430.0,115420.0,1.7845332]
[1757651267466,0.22231992,115430.0,115420.0,1.86208903]
[1757651267966,0.22231992,115430.0,115420.0,1.06880903]
[1757651268166,0.22231992,115430.0,115420.0,1.86148903]
[1757651272681,0.03647,115430.0,115420.0,1.86148903]
[1757651272884,0.22231992,115430.0,115420.0,1.86148903]
[1757651274381,0.22231992,115430.0,115420.0,1.7839332]
[1757651274682,0.22231992,115430.0,115420.0,1.89224202]
[1757651277493,0.03647,115430.0,115420.0,1.89224202]
[1757651277785,0.22231992,115430.0,115420.0,1.89224202]
[1757651278192,0.22231992,115430.0,115420.0,1.89188202]
[1757651282995,0.65816984,115430.0,115420.0,0.49104882]
[1757651283200,0.84401976,115430.0,115420.0,0.02194]
[1757651283401,0.65816984,115430.0,115420.0,0.02194]
[1757651283797,0.01268,115420.0,115410.0,1.23030171]
[1757651284100,0.61321874,115420.0,115410.0,0.10830882]
[1757651284297,0.86321874,115420.0,115410.0,0.10830882]
[1757651284496,0.67759899,115420.0,115410.0,0.10830882]
[1757651285195,0.67759899,115420.0,115410.0,0.10930882]
[1757651285401,1.03839899,115420.0,115410.0,0.10930882]
[1757651285699,1.03839899,115420.0,115410.0,0.07864406]
[1757651286398,1.83003899,115420.0,115410.0,0.07864406]
[1757651286599,1.03839899,115420.0,115410.0,0.07864406]
[1757651286805,1.83003899,115420.0,115410.0,0.07864406]
[1757651288204,1.03839899,115420.0,115410.0,0.07864406]
[1757651288502,1.83003899,115420.0,115410.0,0.07864406]
[1757651288697,1.82983899,115420.0,115410.0,0.001]
[1757651288905,1.89873538,115420.0,115410.0,0.001]
[1757651291801,1.89865538,115420.0,115410.0,0.001]
[1757651294407,1.10729538,115420.0,115410.0,0.001]
[1757651294709,1.89837538,115420.0,115410.0,0.001]
[1757651295303,1.89833538,115420.0,115410.0,0.001]
[1757651296608,1.10729538,115420.0,115410.0,0.001]
[1757651296804,1.89817538,115420.0,115410.0,0.001]
[1757651297807,1.10729538,115420.0,115410.0,0.001]
[1757651298015,1.89821538,115420.0,115410.0,0.001]
[1757651298912,1.10729538,115420.0,115410.0,0.001]
[1757651299112,1.89809538,115420.0,115410.0,0.001]
[1757651299313,1.89801538,115420.0,115410.0,0.001]
[1757651300208,1.52399871,115420.0,115410.0,0.02276]
[1757651300912,0.73331871,115420.0,115410.0,0.02276]
[1757651301307,1.52399871,115420.0,115410.0,0.02276]
[1757651302013,1.16319871,115420.0,115410.0,0.02276]
[1757651302412,0.37251871,115420.0,115410.0,0.02276]
[1757651302614,0.05566898,115420.0,115410.0,0.92753667]
[1757651302915,0.04298898,115420.0,115410.0,0.93727667]
[1757651303212,0.16696565,115420.0,115410.0,0.93727667]
[1757651303810,0.16696565,115420.0,115410.0,0.8133]
[1757651304307,0.04298898,115420.0,115410.0,0.8133]
[1757651304512,0.16696565,115420.0,115410.0,0.8133]
[1757651306813,0.02034898,115420.0,115410.0,0.8133]
[1757651307011,0.02034898,115420.0,115410.0,0.93727667]
[1757651307211,0.04139898,115420.0,115410.0,0.93727667]
[1757651307411,0.17849565,115420.0,115410.0,0.38356]
[1757651307710,0.30247232,115420.0,115410.0,0.38356]
[1757651311320,0.05451898,115420.0,115410.0,0.38356]
[1757651311513,0.30247232,115420.0,115410.0,0.38356]
[1757651313314,0.30247232,115420.0,115410.0,0.46120406]
[1757651314617,0.05451898,115420.0,115410.0,0.46120406]
[1757651314814,0.30247232,115420.0,115410.0,0.46120406]
[1757651319424,0.30247232,115420.0,115410.0,0.38356]
[1757651320724,0.30247232,115420.0,115410.0,0.46120406]
[1757651322019,1.09199232,115420.0,115410.0,0.46120406]
[1757651322220,1.34199232,115420.0,115410.0,0.001]
[1757651322421,1.34199232,115420.0,115410.0,0.38489]
[1757651322621,1.34199232,115420.0,115410.0,0.02409]
[1757651323622,1.89633044,115420.0,115410.0,0.001]
[1757651324518,0.01312,115410.0,115400.0,0.43844406]
[1757651324823,0.03417,115380.0,115370.0,0.49219882]
[1757651325012,0.28212334,115380.0,115370.0,0.49219882]
[1757651325518,0.28212334,115380.0,115370.0,0.38389]
[1757651326121,0.28212334,115380.0,115370.0,0.38889]
[1757651327128,0.28212334,115380.0,115370.0,0.39289]
[1757651330630,0.03417,115380.0,115370.0,0.39289]
[1757651331329,0.28212334,115380.0,115370.0,0.39289]
[1757651337020,1.07176334,115380.0,115370.0,0.39289]
[1757651344435,1.44574001,115380.0,115370.0,0.009]
[1757651344926,1.32176334,115380.0,115370.0,0.009]
[1757651345129,1.44574001,115380.0,115370.0,0.009]
[1757651346533,1.63197377,115380.0,115370.0,0.009]
[1757651346937,0.84233377,115380.0,115370.0,0.009]
[1757651347137,1.69946619,115380.0,115370.0,0.009]
[1757651349042,0.91034619,115380.0,115370.0,0.009]
[1757651349241,1.69934619,115380.0,115370.0,0.009]
[1757651350138,2.06014619,115380.0,115370.0,0.009]
[1757651351337,1.27114619,115380.0,115370.0,0.009]
[1757651351545,2.06002619,115380.0,115370.0,0.009]
[1757651352338,1.27114619,115380.0,115370.0,0.009]
[1757651352543,2.06006619,115380.0,115370.0,0.009]
[1757651352943,1.27114619,115380.0,115370.0,0.009]
[1757651353139,2.05998619,115380.0,115370.0,0.009]
[1757651358744,1.27114619,115380.0,115370.0,0.009]
[1757651358945,2.05994619,115380.0,115370.0,0.009]